bitfinex-derivatives/quotes_BNBF0:USTF0_20241225
["timestamp","ask_amount","ask_price","bid_price","bid_amount"]
[1735141545544,0.26111805,704.63,702.97,0.28450716]
[1735141545845,0.28383287,704.64,702.97,0.28450716]
[1735141564255,0.28383287,704.64,703.04,1.27525996]
[1735141564657,0.28383287,704.64,703.05,0.28447478]
[1735141564882,0.28383287,704.64,703.17,1.27525996]
[1735141565657,0.28383287,704.64,703.15,1.27525996]
[1735141566359,0.28383287,704.64,703.16,1.27525996]
[1735141567365,0.28383287,704.64,703.18,0.28442219]
[1735141569762,0.28383287,704.64,703.31,1.27525996]
[1735141570067,0.28383287,704.64,703.32,0.28436558]
[1735141570557,1.04947716,705.54,703.32,0.28436558]
[1735141570770,0.28347885,705.52,703.32,0.28436558]
[1735141570964,0.26089752,705.51,703.32,0.28436558]
[1735141571562,0.2834909,705.49,703.32,0.28436558]
[1735141574965,0.26086014,705.48,703.32,0.28436558]
[1735141575666,0.26085747,705.47,703.32,0.28436558]
[1735141575864,0.2834909,705.49,703.32,0.28436558]
[1735141575865,0.26085747,705.46,703.32,0.28436558]
[1735141576061,0.26085747,705.45,703.32,0.28436558]
[1735141576265,0.26085747,705.44,703.32,0.28436558]
[1735141576465,0.26085747,705.43,703.32,0.28436558]
[1735141576666,0.26085747,705.42,703.32,0.28436558]
[1735141576976,0.26085747,705.41,703.32,0.28436558]
[1735141577166,0.2834909,705.49,703.32,0.28436558]
[1735141577367,0.2608561,705.48,703.32,0.28436558]
[1735141577665,0.26085721,705.47,703.32,0.28436558]
[1735141577861,0.26085721,705.46,703.32,0.28436558]
[1735141578168,0.26085721,705.45,703.32,0.28436558]
[1735141578473,0.26085721,705.44,703.32,0.28436558]
[1735141578669,0.26085721,705.43,703.32,0.28436558]
[1735141578866,0.26085721,705.42,703.32,0.28436558]
[1735141579165,0.26085721,705.41,703.32,0.28436558]
[1735141579465,0.28353109,705.39,703.32,0.28436558]
[1735141584064,0.26084871,705.38,703.32,0.28436558]
[1735141585770,0.28353109,705.39,703.32,0.28436558]
[1735141585971,0.26084603,705.38,703.32,0.28436558]
[1735141586566,0.28353109,705.39,703.32,0.28436558]
[1735141588785,0.26086007,705.38,703.32,0.28436558]
[1735141591077,0.28353109,705.39,703.32,0.28436558]
[1735141593982,0.26094684,705.38,703.32,0.28436558]
[1735141596685,0.26094684,705.37,703.32,0.28436558]
[1735141596886,0.26103654,705.36,703.32,0.28436558]
[1735141597086,0.26103654,705.35,703.32,0.28436558]
[1735141597288,1.04947716,705.33,703.32,0.28436558]
[1735141597479,0.26103654,705.32,703.32,0.28436558]
[1735141597683,0.26103654,705.31,703.32,0.28436558]
[1735141597883,0.26103654,705.3,703.32,0.28436558]
[1735141598097,1.04947716,705.33,703.32,0.28436558]
[1735141598098,0.26103654,705.29,703.32,0.28436558]
[1735141598284,0.26103654,705.28,703.32,0.28436558]
[1735141598486,0.26103654,705.27,703.32,0.28436558]
[1735141598687,0.26103654,705.26,703.32,0.28436558]
[1735141598886,0.26103654,705.25,703.32,0.28436558]
[1735141599081,0.26103654,705.24,703.32,0.28436558]
[1735141599285,0.26103654,705.23,703.32,0.28436558]
[1735141599481,0.28353109,705.39,703.32,0.28436558]
[1735141599482,0.26103654,705.38,703.32,0.28436558]
[1735141599687,0.26103654,705.37,703.32,0.28436558]
[1735141599883,0.26103654,705.36,703.32,0.28436558]
[1735141600084,0.26103654,705.35,703.32,0.28436558]
[1735141600288,0.26103654,705.34,703.32,0.28436558]
[1735141600489,0.26103654,705.33,703.32,0.28436558]
[1735141600791,0.26103654,705.32,703.32,0.28436558]
[1735141601091,0.26103654,705.31,703.32,0.28436558]
[1735141601391,0.26098706,705.3,703.32,0.28436558]
[1735141601621,0.26098706,705.29,703.32,0.28436558]
[1735141601784,0.28353109,705.39,703.32,0.28436558]
[1735141601785,0.26098706,705.38,703.32,0.28436558]
[1735141601986,0.26098706,705.37,703.32,0.28436558]
[1735141602283,0.28353109,705.39,703.32,0.28436558]
[1735141602284,0.26098706,705.36,703.32,0.28436558]
[1735141602590,0.2609785,705.35,703.32,0.28436558]
[1735141602792,0.2609785,705.34,703.32,0.28436558]
[1735141602989,0.2609785,705.33,703.32,0.28436558]
[1735141603293,0.2609785,705.32,703.32,0.28436558]
[1735141603491,0.2609785,705.31,703.32,0.28436558]
[1735141603790,0.2609785,705.3,703.32,0.28436558]
[1735141604087,0.2609785,705.29,703.32,0.28436558]
[1735141604384,0.2609785,705.28,703.32,0.28436558]
[1735141604590,0.2609785,705.27,703.32,0.28436558]
[1735141604890,0.2609785,705.26,703.32,0.28436558]
[1735141605090,0.2609785,705.25,703.32,0.28436558]
[1735141605286,0.28353109,705.39,703.32,0.28436558]
[1735141605287,0.26098035,705.24,703.32,0.28436558]
[1735141605487,0.26098035,705.23,703.32,0.28436558]
[1735141605687,0.26098035,705.22,703.32,0.28436558]
[1735141605887,0.28353109,705.39,703.32,0.28436558]
[1735141605888,0.26098035,705.21,703.32,0.28436558]
[1735141606084,0.26098035,705.2,703.32,0.28436558]
[1735141606287,0.26097727,705.19,703.32,0.28436558]
[1735141606484,0.26097727,705.18,703.32,0.28436558]
[1735141606788,0.26097727,705.17,703.32,0.28436558]
[1735141606987,0.26097727,705.16,703.32,0.28436558]
[1735141607182,0.26097727,705.15,703.32,0.28436558]
[1735141607388,0.26097727,705.14,703.32,0.28436558]
[1735141607589,0.26097727,705.13,703.32,0.28436558]
[1735141607791,0.26097727,705.12,703.32,0.28436558]
[1735141607992,0.2609781,705.11,703.32,0.28436558]
[1735141608192,0.2609781,705.1,703.32,0.28436558]
[1735141608391,0.28353109,705.39,703.32,0.28436558]
[1735141608586,0.26097791,705.38,703.32,0.28436558]
[1735141608789,0.26097792,705.37,703.32,0.28436558]
[1735141608991,0.28357933,705.27,703.32,0.28436558]
[1735141609192,0.26097792,705.26,703.32,0.28436558]
[1735141609988,0.2835914,705.24,703.32,0.28436558]
[1735141610318,0.26097792,705.23,703.32,0.28436558]
[1735141610914,0.26097502,705.22,703.32,0.28436558]
[1735141611089,0.26098968,705.21,703.32,0.28436558]
[1735141611292,0.26098968,705.2,703.32,0.28436558]
[1735141611488,0.26098968,705.19,703.32,0.28436558]
[1735141611689,0.26098968,705.18,703.32,0.28436558]
[1735141611891,0.26098968,705.17,703.32,0.28436558]
[1735141612093,0.26098968,705.16,703.32,0.28436558]
[1735141612295,0.26098968,705.15,703.32,0.28436558]
[1735141612493,0.28363564,705.13,703.32,0.28436558]
[1735141612688,0.26098968,705.12,703.32,0.28436558]
[1735141613392,0.2836477,705.1,703.32,0.28436558]
[1735141613593,0.26102978,705.09,703.32,0.28436558]
[1735141613792,0.28365977,705.07,703.32,0.28436558]
[1735141613989,0.26102978,705.06,703.32,0.28436558]
[1735141614395,0.28367184,705.04,703.32,0.28436558]
[1735141614595,0.26102978,705.03,703.32,0.28436558]
[1735141615795,0.28368391,705.01,703.32,0.28436558]
[1735141615992,0.26102978,705.0,703.32,0.28436558]
[1735141616497,0.26103668,704.99,703.32,0.28436558]
[1735141616697,0.26103668,704.98,703.32,0.28436558]
[1735141616897,0.26103668,704.97,703.32,0.28436558]
[1735141617097,0.26104517,704.96,703.32,0.28436558]
[1735141617297,0.26104517,704.95,703.32,0.28436558]
[1735141617497,0.26104517,704.94,703.32,0.28436558]
[1735141617699,0.26104517,704.93,703.32,0.28436558]
[1735141617898,0.26104517,704.92,703.32,0.28436558]
[1735141618095,0.26104517,704.91,703.32,0.28436558]
[1735141618292,0.28368391,705.01,703.32,0.28436558]
[1735141618596,0.26107228,705.0,703.32,0.28436558]
[1735141619298,0.26107499,704.99,703.32,0.28436558]
[1735141619599,0.26107499,704.98,703.32,0.28436558]
[1735141619800,0.26107499,705.0,703.32,0.28436558]
[1735141620012,0.26107499,704.99,703.32,0.28436558]
[1735141620195,0.26107499,704.98,703.32,0.28436558]
[1735141620399,0.26107499,704.97,703.32,0.28436558]
[1735141620598,0.26107499,704.96,703.32,0.28436558]
[1735141620795,0.26107499,704.95,703.32,0.28436558]
[1735141620998,0.26107499,705.0,703.32,0.28436558]
[1735141621195,0.26107499,704.99,703.32,0.28436558]
[1735141621400,0.26107499,704.98,703.32,0.28436558]
[1735141621604,0.26107499,704.97,703.32,0.28436558]
[1735141621902,0.26107499,704.96,703.32,0.28436558]
[1735141622103,0.26107499,704.95,703.32,0.28436558]
[1735141622406,0.26107499,704.94,702.43,2.54762131]
[1735141622702,0.26107499,704.93,702.45,2.83233908]
[1735141622901,0.26107499,705.0,702.45,0.28471777]
[1735141623199,0.26107499,704.99,702.45,0.28471777]
[1735141623405,0.26107499,704.98,702.45,0.28471777]
[1735141623597,0.26117529,704.97,702.45,0.28471777]
[1735141623797,0.26117529,704.96,702.45,0.28471777]
[1735141624001,0.26117529,704.95,702.45,0.28471777]
[1735141624195,0.28368391,705.01,702.45,0.28471777]
[1735141624196,0.26117529,704.94,702.45,0.28471777]
[1735141624406,0.26117529,704.93,702.45,0.28471777]
[1735141624603,0.26117529,704.92,702.45,0.28471777]
[1735141624803,0.26117529,704.91,702.45,0.28471777]
[1735141625004,0.26117529,704.9,702.45,0.28471777]
[1735141625198,0.26117529,704.89,702.45,0.28471777]
[1735141625401,0.26117529,704.88,702.45,0.28471777]
[1735141625602,0.26117529,704.87,702.45,0.28471777]
[1735141625803,0.26117529,704.86,702.45,0.28471777]
[1735141626003,0.26117529,704.85,702.45,0.28471777]
[1735141626208,0.26117529,704.84,702.45,0.28471777]
[1735141626397,0.26117529,705.0,702.45,0.28471777]
[1735141626601,0.26117529,704.99,702.45,0.28471777]
[1735141626803,0.26117529,704.98,702.45,0.28471777]
[1735141627104,0.26117529,704.97,702.45,0.28471777]
[1735141627306,0.26117529,704.96,702.45,0.28471777]
[1735141627500,0.26117529,704.95,702.45,0.28471777]
[1735141627709,0.26117529,704.94,702.45,0.28471777]
[1735141628005,0.26117529,704.93,702.45,0.28471777]
[1735141628204,0.28368391,705.01,702.45,0.28471777]
[1735141628205,0.26117529,704.92,702.45,0.28471777]
[1735141628406,0.26117529,704.91,702.45,0.28471777]
[1735141628602,0.26117529,704.9,702.45,0.28471777]
[1735141628826,0.28368391,705.01,702.45,0.28471777]
[1735141628827,0.26117529,704.89,702.45,0.28471777]
[1735141629003,0.26113965,704.88,702.45,0.28471777]
[1735141629209,0.26113965,704.87,702.45,0.28471777]
[1735141629404,0.26112722,704.86,702.45,0.28471777]
[1735141629608,0.26112722,704.85,702.45,0.28471777]
[1735141629809,0.26112722,704.84,702.45,0.28471777]
[1735141630010,0.26112722,704.83,702.45,0.28471777]
[1735141630208,0.26112722,704.82,702.45,0.28471777]
[1735141630407,0.26112722,704.81,702.45,0.28471777]
[1735141630610,0.26112722,704.8,702.45,0.28471777]
[1735141630907,0.26112722,704.79,702.45,0.28471777]
[1735141631110,0.28368391,705.01,702.45,0.28471777]
[1735141631111,0.26112722,704.78,702.45,0.28471777]
[1735141631311,0.26112722,704.77,702.45,0.28471777]
[1735141631612,0.26112722,704.76,702.45,0.28471777]
[1735141631812,0.26111809,705.0,702.45,0.28471777]
[1735141632005,0.26111809,704.99,702.45,0.28471777]
[1735141632206,0.26111809,704.98,702.45,0.28471777]
[1735141632414,0.26111809,704.97,702.45,0.28471777]
[1735141632610,0.26111826,705.0,702.45,0.28471777]
[1735141632809,0.26111826,704.99,702.45,0.28471777]
[1735141633012,0.26111826,704.98,702.45,0.28471777]
[1735141633309,0.26111826,704.97,702.45,0.28471777]
[1735141633511,0.26111826,704.96,702.45,0.28471777]
[1735141633710,0.26111826,704.95,702.45,0.28471777]
[1735141633911,0.26111826,704.94,702.45,0.28471777]
[1735141634113,0.26111826,704.93,702.45,0.28471777]
[1735141634306,0.26111826,704.92,702.45,0.28471777]
[1735141634505,0.28368391,705.01,702.45,0.28471777]
[1735141634706,0.26108466,705.0,702.45,0.28471777]
[1735141636310,0.26108466,705.0,702.45,5.61783154]
[1735141636512,0.26108466,705.0,702.46,5.33311377]
[1735141636711,0.26108466,705.0,702.47,5.33311377]
[1735141636910,0.26108466,705.0,702.48,2.7909408]
[1735141637211,0.28368391,705.01,702.48,5.33311377]
[1735141637407,0.26111009,705.0,702.49,2.7909408]
[1735141637611,0.26111009,705.0,702.49,5.33311377]
[1735141637811,0.26111009,705.0,702.5,5.33311377]
[1735141638012,0.26111009,705.0,702.51,2.7909408]
[1735141638212,0.26111009,705.0,702.52,2.54217297]
[1735141638713,0.26111009,705.0,702.45,2.82689074]
[1735141638915,0.26111009,705.0,702.46,2.79134216]
[1735141639411,0.26111009,705.0,702.47,5.33351513]
[1735141639620,0.26111009,705.0,702.48,2.79134216]
[1735141639811,0.26111009,705.0,702.49,2.54217297]
[1735141640010,0.26113463,704.99,702.5,2.79134216]
[1735141640227,0.26113463,704.98,702.5,2.79134216]
[1735141640412,0.26113463,704.97,702.51,2.54217297]
[1735141640714,0.28368391,705.01,702.52,2.79134216]
[1735141640715,0.26114297,704.96,702.52,2.79134216]
[1735141640909,0.26114297,704.95,702.53,2.54217297]
[1735141641111,0.26114297,704.94,702.54,2.79134216]
[1735141641311,0.26114297,704.93,702.54,2.79134216]
[1735141641511,0.26114297,704.92,702.55,2.54217297]
[1735141641713,0.26114297,704.91,702.56,2.79134216]
[1735141641912,0.28368391,705.01,702.55,2.54217297]
[1735141641913,0.26114297,704.9,702.55,2.54217297]
[1735141642113,0.26114297,704.89,702.45,0.28471777]
[1735141642313,0.26114297,704.88,702.45,0.28471777]
[1735141642511,0.26114297,704.87,702.45,0.28471777]
[1735141642814,0.26114297,704.86,702.45,0.28471777]
[1735141643016,0.26114297,704.85,702.45,0.28471777]
[1735141643219,0.26114297,704.84,702.45,0.28471777]
[1735141643417,0.26114297,704.83,702.45,0.28471777]
[1735141643712,0.26114297,704.82,702.45,0.28471777]
[1735141643918,0.26114297,704.81,702.45,0.28471777]
[1735141644117,0.26114297,704.8,702.45,0.28471777]
[1735141644317,0.26114297,704.79,702.45,0.28471777]
[1735141644619,0.28368391,705.01,702.45,0.28471777]
[1735141644620,0.26114297,704.78,702.45,0.28471777]
[1735141644818,0.26114297,704.77,702.45,0.28471777]
[1735141645019,0.26114297,704.76,702.45,0.28471777]
[1735141645218,0.26114297,704.75,702.45,0.28471777]
[1735141645418,0.26118727,704.74,702.45,0.28471777]
[1735141645619,0.26118727,704.73,702.45,0.28471777]
[1735141645814,0.26118727,704.72,702.45,0.28471777]
[1735141646013,0.28368391,705.01,702.45,0.28471777]
[1735141646014,0.26118727,704.71,702.45,0.28471777]
[1735141646220,0.26118727,704.7,702.45,0.28471777]
[1735141646419,0.26118727,704.69,702.45,0.28471777]
[1735141646719,0.26118727,704.68,702.45,0.28471777]
[1735141646914,0.26118727,704.67,702.45,0.28471777]
[1735141647114,0.26118727,704.66,702.45,0.28471777]
[1735141647319,1.04947716,704.99,702.45,0.28471777]
[1735141647514,0.26117818,704.98,702.45,0.28471777]
[1735141647715,0.26117818,704.97,702.45,0.28471777]
[1735141647921,0.26117818,704.96,702.45,0.28471777]
[1735141648122,0.26117704,704.95,702.45,0.28471777]
[1735141648313,0.26117704,704.94,702.45,0.28471777]
[1735141648517,1.04947716,704.8,702.46,1.27525996]
[1735141648715,0.26117704,704.79,702.46,1.27525996]
[1735141649016,0.26117839,704.78,702.46,1.27525996]
[1735141649217,1.04947716,704.75,702.53,1.27525996]
[1735141649422,0.26117839,704.74,702.53,1.27525996]
[1735141650016,1.31065555,704.74,702.56,1.27525996]
[1735141650219,0.26117839,704.73,702.56,1.27525996]
[1735141651022,0.2611741,704.72,702.6,1.27525996]
[1735141651218,0.2611741,704.71,702.6,1.27525996]
[1735141651421,0.2611741,704.7,702.6,1.27525996]
[1735141651618,0.2611741,704.69,702.6,1.27525996]
[1735141651826,0.2611741,704.68,702.7,1.27525996]
[1735141652019,0.2611741,704.67,702.7,1.27525996]
[1735141652217,0.2611741,704.66,702.7,1.27525996]
[1735141652418,0.2611741,704.65,702.7,1.27525996]
[1735141652621,0.2611741,704.64,702.75,1.27525996]
[1735141652823,0.2611741,704.63,702.75,1.27525996]
[1735141653023,0.2611741,704.62,702.75,1.27525996]
[1735141653226,0.2611741,704.61,702.75,1.27525996]
[1735141653524,0.2611741,704.6,702.79,1.27525996]
[1735141653724,0.2611741,704.59,702.79,1.27525996]
[1735141653928,0.2611741,704.58,702.79,1.27525996]
[1735141654124,0.2611741,704.57,702.79,1.27525996]
[1735141654423,1.04947716,704.76,702.79,1.27525996]
[1735141654424,0.2611741,704.56,702.79,1.27525996]
[1735141654624,0.62924495,704.92,702.73,2.79376654]
[1735141654625,0.2611741,704.55,702.77,1.27525996]
[1735141654825,1.04947716,704.75,702.77,1.27525996]
[1735141655027,0.2611412,704.74,702.77,1.27525996]
[1735141655226,0.2611412,704.74,702.88,1.27525996]
[1735141655421,1.04947716,704.73,702.88,1.27525996]
[1735141655623,0.2611412,704.72,702.88,1.27525996]
[1735141656525,0.26114434,704.71,702.88,1.27525996]
[1735141656825,0.26114434,704.7,702.88,1.27525996]
[1735141657026,0.26114434,704.69,702.79,1.27525996]
[1735141657223,0.26114434,704.68,702.79,1.27525996]
[1735141657424,1.04947716,704.8,702.79,1.27525996]
[1735141657624,0.26114193,704.79,702.79,1.27525996]
[1735141657925,0.26114193,704.79,702.7,1.27525996]
[1735141658120,0.26114193,704.78,702.7,1.27525996]
[1735141658347,0.26114193,704.77,702.7,1.27525996]
[1735141658526,0.26114193,704.76,702.7,1.27525996]
[1735141658744,0.26114193,704.75,702.69,1.27525996]
[1735141658924,0.26114193,704.74,702.69,1.27525996]
[1735141659125,0.26114193,704.73,702.69,1.27525996]
[1735141659425,0.26114414,704.72,702.7,0.28461647]
[1735141659625,0.26114414,704.71,702.7,0.28461647]
[1735141659925,1.04947716,704.9,702.7,0.28461647]
[1735141660125,0.26113146,704.89,702.7,0.28461647]
[1735141660626,0.26113146,704.89,702.71,1.27525996]
[1735141660826,0.26113146,704.88,702.71,1.27525996]
[1735141661028,0.26113146,704.87,702.71,1.27525996]
[1735141661225,0.26113146,704.86,702.72,1.27525996]
[1735141661437,0.26113146,704.85,702.72,1.27525996]
[1735141661620,0.26113146,704.84,702.72,1.27525996]
[1735141661825,0.26113146,704.83,702.72,1.27525996]
[1735141662020,0.26113146,704.93,702.72,1.27525996]
[1735141662223,1.04947716,704.97,702.75,1.27525996]
[1735141662922,1.04947716,705.24,702.7,0.28461647]
[1735141663427,0.26107614,705.0,702.7,0.28461647]
[1735141664324,0.28369599,704.98,702.7,0.28461647]
[1735141665028,0.26107394,704.97,702.7,0.28461647]
[1735141665430,0.26107394,704.97,702.85,1.27525996]
[1735141665630,0.26107392,704.96,702.85,1.27525996]
[1735141665930,0.26107392,704.95,702.85,1.27525996]
[1735141666130,0.26107392,704.94,702.85,1.27525996]
[1735141666323,0.28369599,704.98,702.83,1.27525996]
[1735141666324,0.26107392,704.93,702.83,1.27525996]
[1735141666521,0.26107392,704.92,702.83,1.27525996]
[1735141666730,0.26107392,704.91,702.83,1.27525996]
[1735141667023,0.26107392,704.9,702.83,1.27525996]
[1735141667224,0.28369599,704.98,702.98,1.27525996]
[1735141667225,0.26107392,704.89,702.98,1.27525996]
[1735141667429,0.26107392,704.88,702.98,1.27525996]
[1735141667625,0.26107392,704.95,702.98,1.27525996]
[1735141667830,0.26107392,704.94,702.98,1.27525996]
[1735141668152,0.26107392,704.94,702.72,2.16971313]
[1735141668153,0.26107392,704.93,702.95,1.27525996]
[1735141668531,1.04947716,704.94,702.95,1.27525996]
[1735141668733,1.04947716,704.95,702.95,2.80130792]
[1735141668932,1.04947716,704.95,702.96,2.55185626]
[1735141669134,0.28371611,704.93,702.97,2.80130792]
[1735141669333,0.28371611,704.93,702.91,1.27525996]
[1735141669753,0.28371611,704.93,702.9,1.27525996]
[1735141669939,0.26113247,704.92,702.9,1.27525996]
[1735141670648,0.26116437,704.91,702.51,1.27525996]
[1735141670837,0.26116437,704.9,702.51,1.27525996]
[1735141671033,0.26116437,704.89,702.51,1.27525996]
[1735141671235,0.26116437,704.88,702.51,1.27525996]
[1735141671432,0.26116437,704.88,702.14,2.16971313]
[1735141671433,0.26116437,704.87,702.42,1.27525996]
[1735141671640,0.26116437,704.86,702.42,4.08450134]
[1735141671843,0.26116437,704.85,702.43,2.80924138]
[1735141672136,0.26116437,704.84,702.44,2.55853476]
[1735141672340,0.26116437,704.83,702.45,2.80924138]
[1735141672550,0.26116437,704.82,702.46,2.55853476]
[1735141672756,0.26116437,704.81,702.47,2.80924138]
[1735141672947,0.26116437,704.8,702.47,4.08450134]
[1735141673145,0.26116437,704.79,702.48,5.36777614]
[1735141673346,0.2611615,704.78,702.49,2.80924138]
[1735141673545,0.2611615,704.77,702.49,5.36777614]
[1735141673752,0.2611615,704.92,702.5,2.80924138]
[1735141673946,0.2611615,704.91,702.5,5.36777614]
[1735141674139,0.28376844,704.8,702.51,2.80924138]
[1735141674343,0.26115713,704.79,702.51,5.36777614]
[1735141674542,0.28381274,704.69,702.52,5.36777614]
[1735141674745,0.28381274,704.69,702.53,2.80924138]
[1735141674746,0.26115713,704.68,702.53,2.80924138]
[1735141674946,0.26115713,704.68,702.53,5.36777614]
[1735141675146,0.28381274,704.69,702.54,2.80924138]
[1735141675346,0.28381274,704.69,702.54,5.36777614]
[1735141675646,0.26116249,704.68,702.57,1.27525996]
[1735141675842,0.28382482,704.66,702.57,1.27525996]
[1735141676041,0.28382482,704.66,702.57,6.6430361]
[1735141676242,0.28382482,704.66,702.58,2.80924138]
[1735141676441,0.28382482,704.66,702.59,2.55853476]
[1735141676647,0.26116489,704.65,702.63,1.27525996]
[1735141676848,0.28382482,704.66,702.63,1.27525996]
[1735141677260,0.28382482,704.66,702.63,4.08450134]
[1735141677442,0.28382482,704.66,702.67,1.27525996]
[1735141678042,0.28382482,704.66,702.72,1.27525996]
[1735141678043,0.26111858,704.65,702.72,1.27525996]
[1735141678347,0.28382482,704.66,702.72,1.27525996]
[1735141678948,0.28382482,704.66,702.71,2.80924138]
[1735141679142,0.28382482,704.66,702.72,2.55853476]
[1735141679347,0.28382482,704.66,702.73,2.80924138]
[1735141680048,0.28382482,704.66,702.74,2.55853476]
[1735141680344,0.28382482,704.66,702.76,0.28459217]
[1735141680647,0.28382482,704.66,702.76,2.84312693]
[1735141681244,0.28382482,704.66,702.77,1.47062916]
[1735141681443,0.28382482,704.66,702.78,0.28458408]
[1735141685846,0.28382482,704.66,702.79,1.27525996]
[1735141686453,0.28382482,704.66,702.86,1.27525996]
[1735141686654,0.28382482,704.66,702.87,0.28454764]
[1735141687647,0.26115108,704.65,702.87,0.28454764]
[1735141689450,0.28382482,704.66,702.87,0.28454764]
[1735141690055,0.26115443,704.65,702.87,0.28454764]
[1735141690549,0.28382482,704.66,702.87,0.28454764]
[1735141690749,0.26115689,704.65,702.87,0.28454764]
[1735141691856,0.28382482,704.66,702.87,0.28454764]
[1735141692155,0.2611593,704.65,702.87,0.28454764]
[1735141694557,0.28382482,704.66,702.88,1.27525996]
[1735141694757,0.26115872,704.65,702.88,1.27525996]
[1735141695156,0.26115872,704.65,702.87,0.28454764]
[1735141695955,0.26115872,704.65,702.87,3.09935601]
[1735141696161,0.26115872,704.65,702.88,2.55853476]
[1735141696360,0.26115872,704.65,702.89,2.81480837]
[1735141696556,0.28382482,704.66,702.89,2.81480837]
[1735141696758,0.26117958,704.65,702.87,0.28454764]
[1735141697860,0.28382482,704.66,702.87,0.28454764]
[1735141698459,0.26116348,704.65,702.87,0.28454764]
[1735141699463,0.28382482,704.66,702.87,0.28454764]
[1735141699964,0.26110807,704.65,703.05,1.27525996]
[1735141700260,0.28382482,704.66,703.05,1.27525996]
[1735141700463,0.26110916,704.65,703.05,1.27525996]
[1735141701665,0.26110916,704.65,703.01,5.3797724]
[1735141701666,0.28382482,704.66,703.04,1.27525996]
[1735141702365,0.28382482,704.66,702.95,2.56421434]
[1735141702867,0.28382482,704.66,702.87,0.28454764]
[1735141703777,0.28382482,704.66,702.87,1.5598076]
[1735141704269,0.28382482,704.66,702.87,0.28454764]
[1735141710472,0.28382482,704.66,702.97,1.27525996]
[1735141711874,0.28382482,704.66,702.87,0.28454764]
[1735141712374,0.26116162,704.65,702.87,0.28454764]
[1735141714370,0.26116162,704.65,702.88,1.27525996]
[1735141714974,0.26116162,704.65,702.87,0.28454764]
[1735141716571,0.28382482,704.66,702.87,0.28454764]
[1735141716776,0.26117998,704.65,702.87,0.28454764]
[1735141718276,0.28382482,704.66,702.87,0.28454764]
[1735141724778,0.26118294,704.65,702.87,0.28454764]
[1735141725006,0.2838369,704.63,702.87,0.28454764]
[1735141727678,0.26118222,704.62,702.87,0.28454764]
[1735141729981,0.28384899,704.6,702.87,0.28454764]
[1735141730279,0.26118222,704.59,702.87,0.28454764]
[1735141730474,0.26117426,704.58,702.87,0.28454764]
[1735141730680,0.26117426,704.57,702.87,0.28454764]
[1735141730980,0.26117426,704.56,702.87,0.28454764]
[1735141731178,0.28384899,704.6,702.87,0.28454764]
[1735141731379,0.26118013,704.59,702.87,0.28454764]
[1735141731577,0.28386107,704.57,702.87,0.28454764]
[1735141731772,0.26118013,704.56,702.87,0.28454764]
[1735141732179,0.28387316,704.54,702.87,0.28454764]
[1735141750997,0.26122404,704.53,702.87,0.28454764]
[1735141752292,0.28388525,704.51,702.87,0.28454764]
[1735141759095,0.26119885,704.5,702.87,0.28454764]
[1735141759699,0.28389734,704.48,702.87,0.28454764]
[1735141760001,0.26119885,704.47,702.87,0.28454764]
[1735141760398,0.28390943,704.45,702.87,0.28454764]
[1735141760593,0.26119811,704.44,702.87,0.28454764]
[1735141761800,0.28392152,704.42,702.87,0.28454764]
[1735141765507,0.28392152,704.42,702.87,5.66150438]
[1735141765701,0.28392152,704.42,702.87,2.84747791]
[1735141766105,0.28392152,704.42,702.87,0.28454764]
[1735141768908,0.26123739,704.41,702.87,0.28454764]
[1735141769108,0.28392152,704.42,702.87,0.28454764]
[1735141769707,0.26124615,704.41,702.87,0.28454764]
[1735141772108,0.26125606,704.4,702.87,0.28454764]
[1735141772309,0.28393764,704.38,702.87,0.28454764]
[1735141772711,0.26122879,704.37,702.87,0.28454764]
[1735141773414,0.28394974,704.35,702.87,0.28454764]
[1735141773613,0.26123054,704.34,702.87,0.28454764]
[1735141773813,0.2839578,704.33,702.87,0.28454764]
[1735141774611,0.26123231,704.32,702.87,0.28454764]
[1735141774814,0.28396989,704.3,702.87,0.28454764]
[1735141795331,0.28396989,704.3,702.9,1.27525996]
[1735141796232,0.28396989,704.3,702.88,1.27525996]
[1735141797026,0.28396989,704.3,702.87,3.10066683]
[1735141797230,0.28396989,704.3,702.88,2.56499931]
[1735141797430,0.28396989,704.3,702.89,2.81611919]
[1735141797630,0.28396989,704.3,702.9,2.56499931]
[1735141797948,0.28396989,704.3,702.91,2.81611919]
[1735141798233,0.28396989,704.3,702.92,2.56499931]
[1735141798433,0.28396989,704.3,702.93,2.81611919]
[1735141798629,0.28396989,704.3,702.94,2.56499931]
[1735141798831,0.28396989,704.3,702.95,2.81611919]
[1735141799233,0.28396989,704.3,702.96,2.56499931]
[1735141799930,0.28396989,704.3,702.87,0.28454764]
[1735141800233,0.28396989,704.3,702.97,2.56499931]
[1735141800528,0.28396989,704.3,702.87,0.28454764]
[1735141813144,0.26124877,704.29,702.87,0.28454764]
[1735141813345,0.28396989,704.3,702.87,0.28454764]
[1735141836468,0.26125397,704.29,702.87,0.28454764]
[1735141836768,0.28396989,704.3,702.87,0.28454764]
[1735141837469,0.26126887,704.29,702.87,0.28454764]
[1735141837865,0.28396989,704.3,702.87,0.28454764]
[1735141838063,0.26126601,704.29,702.87,0.28454764]
[1735141839264,0.28396989,704.3,702.87,0.28454764]
[1735141839468,0.26127518,704.29,702.87,0.28454764]
[1735141839663,0.26129063,704.28,702.47,2.56191945]